fUST/lending_fUST_20250926
["ID","MTS","AMOUNT","RATE_DAILY","PERIOD"]
[387818238,1758888648729,-651.15,0.00041917,120]
[387818239,1758888648738,-482.2,0.00041917,120]
[387818240,1758888648748,-754.39,0.00041917,120]
[387818241,1758888648757,-490.4,0.00041917,120]
[387818242,1758888648767,-3277.59,0.00041917,120]
[387818243,1758888648777,-564.40755758,0.00041917,120]
[387818244,1758888648786,-480.0,0.00042191,120]
[387818245,1758888648795,-480.0,0.00042191,120]
[387818246,1758888648804,-1480.18,0.00042191,120]
[387818247,1758888648813,-480.0,0.00042191,120]
[387818248,1758888648823,-721.24,0.00042191,120]
[387818249,1758888648833,-506.89,0.00042191,120]
[387818250,1758888648843,-720.1,0.00042191,120]
[387818251,1758888648852,-480.0,0.00042191,30]
[387818252,1758888648861,-658.47,0.00042191,120]
[387818253,1758888648871,-500.0,0.00042191,120]
[387818254,1758888648881,-480.0,0.00042191,120]
[387818255,1758888648890,-3163.02,0.00042191,120]
[387818256,1758888648899,-555.11,0.00042191,120]
[387818257,1758888648910,-480.0,0.00042191,120]
[387818258,1758888648920,-480.0,0.00042191,120]
[387818259,1758888648929,-805.09,0.00042191,3]
[387818260,1758888648939,-648.22,0.00042191,120]
[387818261,1758888648948,-480.0,0.00042191,120]
[387818262,1758888648958,-912.7,0.00042191,120]
[387818263,1758888648967,-480.0,0.00042191,21]
[387818264,1758888648977,-1268.94,0.00042191,120]
[387818265,1758888648987,-750.32,0.00042191,120]
[387818266,1758888648997,-378.4099007,0.00042191,120]
[387818267,1758888649007,-487.72,0.00042191,120]
[387818268,1758888649017,-1333.09,0.00042191,120]
[387818269,1758888649027,-480.0,0.00042191,120]
[387818270,1758888649037,-1691.87,0.00042191,120]
[387818271,1758888649047,-651.15,0.00042191,120]
[387818272,1758888649056,-482.2,0.00042191,120]
[387818273,1758888649066,-754.39,0.00042191,120]
[387818274,1758888649075,-490.4,0.00042191,120]
[387818275,1758888649086,-3277.59,0.00042191,120]
[387818276,1758888649096,-1083.0,0.000423,31]
[387818277,1758888649106,-480.0,0.00042465,120]
[387818278,1758888649116,-480.0,0.00042465,120]
[387818279,1758888649126,-1480.18,0.00042465,120]
[387818280,1758888649138,-480.0,0.00042465,120]
[387818281,1758888649147,-721.24,0.00042465,120]
[387818282,1758888649157,-506.89,0.00042465,120]
[387818283,1758888649167,-720.1,0.00042465,120]
[387818284,1758888649177,-480.0,0.00042465,30]
[387818285,1758888649187,-658.47,0.00042465,120]
[387818286,1758888649198,-500.0,0.00042465,120]
[387818287,1758888649216,-480.0,0.00042465,120]
[387818288,1758888649235,-3163.02,0.00042465,120]
[387818289,1758888649255,-555.11,0.00042465,120]
[387818290,1758888649276,-290.52244426,0.00042465,120]
[387818291,1758888649287,-480.0,0.00042465,120]
[387818292,1758888649297,-805.09,0.00042465,3]
[387818293,1758888649306,-648.22,0.00042465,120]
[387818294,1758888649315,-480.0,0.00042465,120]
[387818295,1758888649325,-912.7,0.00042465,120]
[387818296,1758888649335,-480.0,0.00042465,21]
[387818297,1758888649344,-1268.94,0.00042465,120]
[387818298,1758888649354,-750.32,0.00042465,120]
[387818299,1758888649364,-487.72,0.00042465,120]
[387818300,1758888649374,-1333.09,0.00042465,120]
[387818301,1758888649384,-480.0,0.00042465,120]
[387818302,1758888649393,-1691.87,0.00042465,120]
[387818303,1758888649402,-651.15,0.00042465,120]
[387818304,1758888649412,-482.2,0.00042465,120]
[387818305,1758888649422,-500.0,0.00042465,120]
[387818306,1758888649431,-754.39,0.00042465,120]
[387818307,1758888649441,-490.4,0.00042465,120]
[387818308,1758888649450,-3277.59,0.00042465,120]
[387818309,1758888649459,-152.35315416,0.00042739,120]
[387818310,1758888649468,-480.0,0.00042739,120]
[387818311,1758888649477,-1480.18,0.00042739,120]
[387818312,1758888649487,-480.0,0.00042739,120]
[387818313,1758888649496,-721.24,0.00042739,120]
[387818314,1758888649506,-506.89,0.00042739,120]
[387818315,1758888649515,-720.1,0.00042739,120]
[387818316,1758888649524,-480.0,0.00042739,30]
[387818317,1758888649533,-658.47,0.00042739,120]
[387818318,1758888649542,-500.0,0.00042739,120]
[387818319,1758888649551,-480.0,0.00042739,120]
[387818320,1758888649561,-3163.02,0.00042739,120]
[387818321,1758888649571,-555.11,0.00042739,120]
[387818322,1758888649583,-480.0,0.00042739,120]
[387818323,1758888649593,-805.09,0.00042739,3]
[387818324,1758888649602,-648.22,0.00042739,120]
[387818325,1758888649612,-480.0,0.00042739,120]
[387818326,1758888649623,-912.7,0.00042739,120]
[387818327,1758888649633,-442.35730603,0.00042739,21]
[387818328,1758888649642,-1268.94,0.00042739,120]
[387818329,1758888649652,-750.32,0.00042739,120]
[387818330,1758888649661,-487.72,0.00042739,120]
[387818331,1758888649672,-1333.09,0.00042739,120]
[387818332,1758888649681,-480.0,0.00042739,120]
[387818333,1758888649690,-1691.87,0.00042739,120]
[387818334,1758888649700,-651.15,0.00042739,120]
[387818335,1758888649709,-482.2,0.00042739,120]
[387818336,1758888649719,-754.39,0.00042739,120]
[387818337,1758888649728,-490.4,0.00042739,120]
[387818338,1758888649737,-3277.59,0.00042739,120]
[387818339,1758888649746,-364.18048296,0.00042854,40]
[387818340,1758888649756,-182.51551669,0.00042929,120]
[387818341,1758888649765,-480.0,0.00043013,120]
[387818342,1758888649774,-1480.18,0.00043013,120]
[387818343,1758888649784,-480.0,0.00043013,120]
[387818344,1758888649793,-721.24,0.00043013,120]
[387818345,1758888649802,-506.89,0.00043013,120]
[387818346,1758888649812,-720.1,0.00043013,120]
[387818347,1758888649821,-480.0,0.00043013,30]
[387818348,1758888649830,-658.47,0.00043013,120]
[387818349,1758888649840,-500.0,0.00043013,120]
[387818350,1758888649850,-251.56923525,0.00043013,120]
[387818351,1758888649858,-3163.02,0.00043013,120]
[387818352,1758888649868,-555.11,0.00043013,120]
[387818353,1758888649878,-480.0,0.00043013,120]
[387818354,1758888649888,-805.09,0.00043013,3]
[387818355,1758888649898,-648.22,0.00043013,120]
[387818356,1758888649907,-480.0,0.00043013,120]
[387818357,1758888649916,-912.7,0.00043013,120]
[387818358,1758888649926,-1268.94,0.00043013,120]
[387818359,1758888649935,-750.32,0.00043013,120]
[387818360,1758888649945,-487.72,0.00043013,120]
[387818361,1758888649954,-1333.09,0.00043013,120]
[387818362,1758888649964,-480.0,0.00043013,120]
[387818363,1758888649973,-1691.87,0.00043013,120]
[387818364,1758888649982,-651.15,0.00043013,120]
[387818365,1758888649992,-482.2,0.00043013,120]
[387818366,1758888650002,-754.39,0.00043013,120]
[387818367,1758888650011,-490.4,0.00043013,120]
[387818368,1758888650021,-3277.59,0.00043013,120]
[387818369,1758888650031,-443.72022177,0.00043287,120]
[387818370,1758888650040,-1480.18,0.00043287,120]
[387818371,1758888650050,-592.16611045,0.00043287,120]
[387818372,1758888650059,-721.24,0.00043287,120]
[387818373,1758888650068,-506.89,0.00043287,120]
[387818374,1758888650078,-720.1,0.00043287,120]
[387818375,1758888650087,-211.857897,0.00043287,30]
[387818376,1758888650097,-658.47,0.00043287,120]
[387818377,1758888650107,-500.0,0.00043287,120]
[387818378,1758888650116,-3163.02,0.00043287,120]
[387818379,1758888650126,-555.11,0.00043287,120]
[387818380,1758888650135,-480.0,0.00043287,120]
[387818381,1758888650146,-805.09,0.00043287,3]
[387818382,1758888650155,-648.22,0.00043287,120]
[387818383,1758888650165,-480.0,0.00043287,120]
[387818384,1758888650174,-912.7,0.00043287,120]
[387818385,1758888650183,-1268.94,0.00043287,120]
[387818386,1758888650192,-750.32,0.00043287,120]
[387818387,1758888650201,-487.72,0.00043287,120]
[387818388,1758888650211,-1333.09,0.00043287,120]
[387818389,1758888650220,-480.0,0.00043287,120]
[387818390,1758888650229,-1691.87,0.00043287,120]
[387818391,1758888650238,-651.15,0.00043287,120]
[387818392,1758888650247,-482.2,0.00043287,120]
[387818393,1758888650257,-500.0,0.00043287,120]
[387818394,1758888650267,-754.39,0.00043287,120]
[387818395,1758888650276,-490.4,0.00043287,120]
[387818396,1758888650285,-3277.59,0.00043287,120]
[387818397,1758888650294,-151.0,0.00043376,3]
[387818398,1758888650304,-151.0,0.00043376,3]
[387818399,1758888650313,-151.0,0.00043376,3]
[387818400,1758888650323,-151.0,0.00043376,3]
[387818401,1758888650332,-500.0,0.00043376,3]
[387818402,1758888650341,-225.36110923,0.00043376,3]
[387818403,1758888650351,-151.0,0.00043376,3]
[387818404,1758888650360,-151.0,0.00043376,3]
[387818405,1758888650369,-151.0,0.00043376,3]
[387818406,1758888650377,-500.0,0.00043376,3]
[387818407,1758888650388,-151.0,0.00043376,3]
[387818408,1758888650398,-158.26373854,0.00043376,3]
[387818409,1758888650485,-151.0,0.00043376,3]
[387818410,1758888650495,-151.0,0.00043376,3]
[387818411,1758888650505,-1480.18,0.00043561,120]
[387818412,1758888650514,-721.24,0.00043561,120]
[387818413,1758888650523,-506.89,0.00043561,120]
[387818414,1758888650534,-720.1,0.00043561,120]
[387818415,1758888650543,-658.47,0.00043561,120]
[387818416,1758888650553,-190.64852173,0.00043561,120]
[387818417,1758888650562,-3163.02,0.00043561,120]
[387818418,1758888650574,-555.11,0.00043561,120]
[387818419,1758888650583,-480.0,0.00043561,120]
[387818420,1758888650593,-805.09,0.00043561,3]
[387818421,1758888650602,-648.22,0.00043561,120]
[387818422,1758888650612,-480.0,0.00043561,120]
[387818423,1758888650622,-912.7,0.00043561,120]
[387818424,1758888650632,-1268.94,0.00043561,120]
[387818425,1758888650641,-750.32,0.00043561,120]
[387818426,1758888650651,-487.72,0.00043561,120]
[387818427,1758888650660,-1333.09,0.00043561,120]
[387818428,1758888650669,-202.39805873,0.00043561,120]
[387818429,1758888650678,-1691.87,0.00043561,120]
[387818430,1758888650688,-651.15,0.00043561,120]
[387818431,1758888650697,-482.2,0.00043561,120]
[387818432,1758888650707,-754.39,0.00043561,120]
[387818433,1758888650716,-490.4,0.00043561,120]
[387818434,1758888650725,-3277.59,0.00043561,120]
[387818435,1758888650734,-1255.81211211,0.00043572,2]
[387818436,1758888650743,-151.0,0.0004365,3]
[387818437,1758888650752,-151.0,0.0004365,3]
[387818438,1758888650762,-151.0,0.0004365,3]
[387818439,1758888650771,-500.0,0.0004365,3]
[387818440,1758888650780,-151.0,0.0004365,3]
[387818441,1758888650790,-151.0,0.0004365,3]
[387818442,1758888650799,-151.0,0.0004365,3]
[387818443,1758888650808,-500.0,0.0004365,3]
[387818444,1758888650818,-151.0,0.0004365,3]
[387818445,1758888650827,-500.0,0.00043717,30]
[387818446,1758888650836,-500.0,0.00043717,30]
[387818447,1758888650846,-1000.0,0.000438,90]
[387818448,1758888650856,-1598.03,0.000438,14]
[387818449,1758888650866,-1480.18,0.00043835,120]
[387818450,1758888650875,-721.24,0.00043835,120]
[387818451,1758888650884,-506.89,0.00043835,120]
[387818452,1758888650893,-720.1,0.00043835,120]
[387818453,1758888650902,-658.47,0.00043835,120]
[387818454,1758888650911,-3163.02,0.00043835,120]
[387818455,1758888650919,-555.11,0.00043835,120]
[387818456,1758888650927,-480.0,0.00043835,120]
[387818457,1758888650935,-805.09,0.00043835,3]
[387818458,1758888650943,-648.22,0.00043835,120]
[387818459,1758888650952,-516.69469268,0.00043835,120]
[387818460,1758888650961,-912.7,0.00043835,120]
[387818461,1758888650970,-1268.94,0.00043835,120]
[387818462,1758888650979,-750.32,0.00043835,120]
[387818463,1758888650988,-487.72,0.00043835,120]
[387818464,1758888650997,-1333.09,0.00043835,120]
[387818465,1758888651006,-1691.87,0.00043835,120]
[387818466,1758888651016,-651.15,0.00043835,120]
[387818467,1758888651026,-482.2,0.00043835,120]
[387818468,1758888651037,-754.39,0.00043835,120]
[387818469,1758888651047,-490.4,0.00043835,120]
[387818470,1758888651056,-3277.59,0.00043835,120]
[387818471,1758888651066,-797.936103,0.00043836,2]
[387818472,1758888651076,-151.0,0.00043924,3]
[387818473,1758888651086,-198.0,0.00043924,3]
[387818474,1758888651097,-500.0,0.00043924,3]
[387818475,1758888651108,-151.0,0.00043924,3]
[387818476,1758888651118,-246.56925732,0.00043924,3]
[387818477,1758888651129,-158.6496239,0.00043924,3]
[387818478,1758888651141,-255.0,0.00043924,3]
[387818479,1758888651151,-151.0,0.00043924,3]
[387818480,1758888651161,-163.0,0.00044,90]
[387818481,1758888651172,-364.18048296,0.00044002,43]
[387818482,1758888651183,-1179.35525696,0.00044067,2]
[387818483,1758888651193,-1480.18,0.00044109,120]
[387818484,1758888651203,-721.24,0.00044109,120]
[387818485,1758888651213,-506.89,0.00044109,120]
[387818486,1758888651223,-720.1,0.00044109,120]
[387818487,1758888651232,-658.47,0.00044109,120]
[387818488,1758888651243,-3163.02,0.00044109,120]
[387818489,1758888651252,-555.11,0.00044109,120]
[387818490,1758888651262,-480.0,0.00044109,120]
[387818491,1758888651271,-805.09,0.00044109,3]
[387818492,1758888651280,-648.22,0.00044109,120]
[387818493,1758888651289,-912.7,0.00044109,120]
[387818494,1758888651299,-1268.94,0.00044109,120]
[387818495,1758888651308,-750.32,0.00044109,120]
[387818496,1758888651318,-487.72,0.00044109,120]
[387818497,1758888651328,-1333.09,0.00044109,120]
[387818498,1758888651337,-1691.87,0.00044109,120]
[387818499,1758888651347,-651.15,0.00044109,120]
[387818500,1758888651356,-482.2,0.00044109,120]
[387818501,1758888651366,-500.0,0.00044109,120]
[387818502,1758888651376,-754.39,0.00044109,120]
[387818503,1758888651386,-490.4,0.00044109,120]
[387818504,1758888651395,-3277.59,0.00044109,120]
[387818505,1758888651405,-202.0,0.0004418,64]
[387818506,1758888651414,-151.0,0.00044198,3]
[387818507,1758888651424,-500.0,0.00044198,3]
[387818508,1758888651434,-151.0,0.00044198,3]
[387818509,1758888651444,-247.61315356,0.00044198,3]
[387818510,1758888651453,-151.0,0.00044198,3]
[387818511,1758888651463,-151.0,0.00044198,3]
[387818512,1758888651472,-151.75518171,0.00044198,3]
[387818513,1758888651482,-151.0,0.00044198,3]
[387818514,1758888651491,-151.0,0.00044198,3]
[387818515,1758888651501,-151.0,0.00044198,3]
[387818516,1758888651510,-152.29099865,0.00044198,3]
[387818517,1758888651520,-500.0,0.00044198,3]
[387818518,1758888651530,-151.0,0.00044198,3]
[387818519,1758888651539,-151.66116134,0.00044198,3]
[387818520,1758888651549,-151.53827853,0.00044198,3]
[387818521,1758888651558,-1480.18,0.00044383,120]
[387818522,1758888651567,-721.24,0.00044383,120]
[387818523,1758888651580,-506.89,0.00044383,120]
[387818524,1758888651589,-720.1,0.00044383,120]
[387818525,1758888651598,-658.47,0.00044383,120]
[387818526,1758888651607,-3163.02,0.00044383,120]
[387818527,1758888651618,-555.11,0.00044383,120]
[387818528,1758888651628,-350.89670498,0.00044383,120]
[387818529,1758888651638,-805.09,0.00044383,3]
[387818530,1758888651647,-648.22,0.00044383,120]
[387818531,1758888651658,-912.7,0.00044383,120]
[387818532,1758888651667,-1268.94,0.00044383,120]
[387818533,1758888651676,-750.32,0.00044383,120]
[387818534,1758888651686,-487.72,0.00044383,120]
[387818535,1758888651695,-1333.09,0.00044383,120]
[387818536,1758888651703,-1691.87,0.00044383,120]
[387818537,1758888651712,-651.15,0.00044383,120]
[387818538,1758888651722,-482.2,0.00044383,120]
[387818539,1758888651731,-754.39,0.00044383,120]
[387818540,1758888651741,-490.4,0.00044383,120]
[387818541,1758888651751,-3277.59,0.00044383,120]
[387818542,1758888651761,-245.0,0.00044472,3]
[387818543,1758888651771,-500.0,0.00044472,3]
[387818544,1758888651781,-198.0,0.00044472,3]
[387818545,1758888651790,-151.0,0.00044472,3]
[387818546,1758888651799,-151.0,0.00044472,3]
[387818547,1758888651809,-151.0,0.00044472,3]
[387818548,1758888651819,-500.0,0.00044472,3]
[387818549,1758888651828,-1480.41363172,0.00044657,120]
[387818550,1758888651838,-721.27513717,0.00044657,120]
[387818551,1758888651847,-507.01152399,0.00044657,120]
[387818552,1758888651857,-720.1396632,0.00044657,120]
[387818553,1758888651866,-658.69621281,0.00044657,120]
[387818554,1758888651875,-3163.12904492,0.00044657,120]
[387818555,1758888651885,-555.27974647,0.00044657,120]
[387818556,1758888651894,-805.10653611,0.00044657,3]
[387818557,1758888651904,-648.27854177,0.00044657,120]
[387818558,1758888651913,-912.8765737,0.00044657,120]
[387818559,1758888651922,-1269.09548929,0.00044657,120]
[387818560,1758888651932,-750.40820472,0.00044657,120]
[387818561,1758888651941,-487.82759267,0.00044657,120]
[387818562,1758888651950,-1333.11714888,0.00044657,120]
[387818563,1758888651959,-1691.95513232,0.00044657,120]
[387818564,1758888651969,-651.3005035,0.00044657,120]
[387818565,1758888651979,-482.35001634,0.00044657,120]
[387818566,1758888651989,-754.39895921,0.00044657,120]
[387818567,1758888651999,-490.62229022,0.00044657,120]
[387818568,1758888652007,-3277.61884445,0.00044657,120]
[387818569,1758888652016,-500.0,0.00044746,3]
[387818570,1758888652025,-196.08091635,0.00044746,3]
[387818571,1758888652034,-151.0,0.00044746,3]
[387818572,1758888652043,-175.4412413,0.00044746,3]
[387818573,1758888652053,-500.0,0.0004493,120]
[387818574,1758888652062,-176.028918,0.00045,2]
[387818575,1758888652072,-500.0,0.0004502,3]
[387818576,1758888652082,-151.0,0.0004502,3]
[387818577,1758888652091,-364.18048296,0.0004515,45]
[387818578,1758888652100,-500.0,0.00045294,3]
[387818579,1758888652110,-151.0,0.00045294,3]
[387818580,1758888652119,-3284.08326451,0.00045311,3]
[387818581,1758888652129,-547.0,0.00045568,3]
[387818582,1758888652138,-245.0,0.00045568,3]
[387818583,1758888652147,-500.0,0.00045752,120]
[387818584,1758888652157,-1255.81211211,0.00045956,2]
[387818585,1758888652167,-1252.47435526,0.00046,30]
[387818586,1758888652177,-1598.03,0.00046,14]
[387818587,1758888652186,-500.0,0.00046018,30]
[387818588,1758888652195,-500.0,0.00046018,30]
[387818589,1758888652205,-364.18048296,0.00046298,48]
[387818590,1758888652214,-500.0,0.00046574,120]
[387818591,1758888652223,-219.1,0.00047006,120]
[387818592,1758888652231,-10739.67,0.00047145,13]
[387818593,1758888652240,-500.0,0.00047396,120]
[387818594,1758888652249,-364.18048296,0.00047445,50]
[387818595,1758888652258,-216602.12,0.00047953,13]
[387818596,1758888652268,-13357.43,0.00047953,13]
[387818597,1758888652278,-154671.52,0.00047953,13]
[387818598,1758888652287,-25343.37,0.00048,120]
[387818599,1758888652297,-197.33029573,0.00048218,120]
[387818600,1758888652307,-166.9886242,0.00048253,2]
[387818601,1758888652316,-39369.8658144,0.00048253,2]
[387818602,1758888652326,-279.23544225,0.0004834,120]
[387818603,1758888652335,-1255.81211211,0.0004834,2]
[387818604,1758888652344,-150.303696,0.000484,2]
[387818605,1758888652353,-350.0,0.00048439,30]
[387818606,1758888652363,-350.0,0.00048439,30]
[387818607,1758888652371,-350.0,0.00048439,30]
[387818608,1758888652380,-350.0,0.00048439,30]
[387818609,1758888652466,-500.0,0.00048439,30]
[387818610,1758888652476,-350.0,0.00048439,30]
[387818611,1758888652486,-500.0,0.00048439,30]
[387818612,1758888652495,-500.0,0.00048439,30]
[387818613,1758888652504,-350.0,0.00048439,30]
[387818614,1758888652514,-500.0,0.00048439,30]
[387818615,1758888652523,-500.0,0.00048439,30]
[387818616,1758888652532,-350.0,0.00048439,30]
[387818617,1758888652541,-500.0,0.00048439,30]
[387818618,1758888652551,-500.0,0.00048439,30]
[387818619,1758888652560,-350.0,0.00048439,30]
[387818620,1758888652569,-500.0,0.00048439,30]
[387818621,1758888652581,-500.0,0.00048439,30]
[387818622,1758888652592,-350.0,0.00048439,30]
[387818623,1758888652602,-500.0,0.00048439,30]
[387818624,1758888652610,-343.65648943,0.00048439,30]
[387818625,1758888652619,-500.0,0.00048439,30]
[387818626,1758888652629,-500.0,0.00048439,30]
[387818627,1758888652639,-500.0,0.00048439,30]
[387818628,1758888652648,-500.0,0.00048439,30]
[387818629,1758888652659,-500.0,0.00048439,30]
[387818630,1758888652669,-500.0,0.00048439,30]
[387818631,1758888652679,-500.0,0.00048439,30]
[387818632,1758888652688,-500.0,0.00048439,30]
[387818633,1758888652697,-500.0,0.00048439,30]
[387818634,1758888652707,-500.0,0.00048439,30]
[387818635,1758888652716,-500.0,0.00048439,30]
[387818636,1758888652725,-500.0,0.00048439,30]
[387818637,1758888652735,-500.0,0.00048439,30]
[387818638,1758888652744,-500.0,0.00048439,30]
[387818639,1758888652753,-500.0,0.00048439,30]
[387818640,1758888652762,-200.0,0.00048439,30]
[387818641,1758888652771,-200.0,0.00048439,30]
[387818642,1758888652781,-200.0,0.00048439,30]
[387818643,1758888652790,-200.0,0.00048439,30]
[387818644,1758888652800,-200.0,0.00048439,30]
[387818645,1758888652809,-200.0,0.00048439,30]
[387818646,1758888652819,-256.14491206,0.00048439,30]
[387818647,1758888652828,-500.0,0.0004844,30]
[387818648,1758888652837,-500.0,0.0004844,30]
[387818649,1758888652847,-408212.32479832,0.0004844,30]
[387818650,1758888652857,-152.262886,0.0004844,120]
[387818651,1758888652866,-151.0,0.0004844,120]
[387818652,1758888652876,-155.803789,0.0004844,120]
[387818653,1758888652885,-151.0,0.0004844,120]
[387818654,1758888652894,-210.476219,0.0004844,120]
[387818655,1758888652904,-151.0,0.0004844,120]
[387818656,1758888652913,-151.0,0.0004844,120]
[387818657,1758888652922,-151.0,0.0004844,120]
[387818658,1758888652931,-151.0,0.0004844,120]
[387818659,1758888652940,-222.555168,0.0004844,120]
[387818660,1758888652950,-151.0,0.0004844,120]
[387818661,1758888652959,-151.0,0.0004844,120]
[387818662,1758888652968,-151.0,0.0004844,120]
[387818663,1758888652978,-151.0,0.0004844,120]
[387818664,1758888652987,-160.184184,0.0004844,120]
[387818665,1758888652996,-249.784963,0.0004844,120]
[387818666,1758888653006,-151.0,0.0004844,15]
[387818667,1758888653016,-151.0,0.0004844,15]
[387818668,1758888653025,-152.370541,0.0004844,14]
[387818669,1758888653034,-151.0,0.0004844,120]
[387818670,1758888653043,-162.534835,0.0004844,120]
[387818671,1758888653052,-151.0,0.0004844,120]
[387818672,1758888653061,-151.0,0.0004844,120]
[387818673,1758888653070,-151.0,0.0004844,120]
[387818674,1758888653079,-151.0,0.0004844,120]
[387818675,1758888653089,-151.0,0.0004844,120]
[387818676,1758888653098,-155.688121,0.0004844,120]
[387818677,1758888653108,-151.0,0.0004844,120]
[387818678,1758888653117,-151.0,0.0004844,120]
[387818679,1758888653127,-176.426575,0.0004844,120]
[387818680,1758888653136,-151.0,0.0004844,120]
[387818681,1758888653146,-151.0,0.0004844,120]
[387818682,1758888653155,-151.0,0.0004844,120]
[387818683,1758888653165,-151.0,0.0004844,120]
[387818684,1758888653174,-155.168099,0.0004844,120]
[387818685,1758888653183,-219.974716,0.0004844,120]
[387818686,1758888653193,-219.974716,0.0004844,120]
[387818687,1758888653202,-219.974716,0.0004844,120]
[387818688,1758888653211,-219.974716,0.0004844,120]
[387818689,1758888653221,-151.0,0.0004844,120]
[387818690,1758888653230,-151.0,0.0004844,120]
[387818691,1758888653239,-151.0,0.0004844,120]
[387818692,1758888653249,-151.0,0.0004844,120]
[387818693,1758888653258,-260.860018,0.0004844,120]
[387818694,1758888653267,-151.0,0.0004844,120]
[387818695,1758888653277,-151.0,0.0004844,30]
[387818696,1758888653286,-151.0,0.0004844,30]
[387818697,1758888653295,-151.0,0.0004844,30]
[387818698,1758888653305,-151.0,0.0004844,120]
[387818699,1758888653314,-278.766432,0.0004844,120]
[387818700,1758888653323,-151.0,0.0004844,120]
[387818701,1758888653331,-151.0,0.0004844,120]
[387818702,1758888653341,-2000.0,0.000485,120]
[387818703,1758888653350,-364.18048296,0.00048593,53]
[387818704,1758888653360,-20000.0,0.000486,120]
[387818705,1758888653370,-20000.0,0.000486,120]
[387818706,1758888653379,-20000.0,0.000486,120]
[387818707,1758888653389,-20000.0,0.000486,120]
[387818708,1758888653399,-105644.47470903,0.000486,13]
[387818709,1758888653449,-10418.47166442,0.000486,13]
[387818710,1758888653461,-1177.35,0.000486,13]
[387818711,1758888653477,-151.0,0.00043376,3]
[387818712,1758888653487,-1054.76205145,0.000486,13]
[387818713,1758888653498,-4689.58941461,0.000486,13]
[387818714,1758888653633,-162.39,0.00038346,2]
[387818715,1758888653645,-480.0,0.00038356,30]
[387818716,1758888653655,-480.0,0.00038356,30]
[387818717,1758888653664,-480.0,0.0003863,30]
[387818718,1758888653675,-480.0,0.0003863,30]
[387818719,1758888653684,-480.0,0.00038904,30]
[387818720,1758888653694,-480.0,0.00038904,30]
[387818721,1758888653703,-480.0,0.00039178,30]
[387818722,1758888653712,-480.0,0.00039178,30]
[387818723,1758888653721,-480.0,0.00039452,30]
[387818724,1758888653731,-480.0,0.00039452,30]
[387818725,1758888653741,-382.46856257,0.00039726,30]
[387818726,1758888653750,-480.0,0.00039726,30]
[387818727,1758888653760,-480.0,0.0004,30]
[387818728,1758888653769,-480.0,0.00040273,30]
[387818729,1758888653778,-480.0,0.00040547,30]
[387818730,1758888653787,-480.0,0.00040821,30]
[387818731,1758888653796,-151.0,0.00043376,3]
[387818732,1758888653805,-874.91199853,0.00045771,28]
[387818733,1758888653814,-159.351176,0.0004844,120]
[387818734,1758888653823,-151.0,0.0004844,120]
[387818735,1758888653833,-329.0002424,0.000486,13]
[387818736,1758888653844,-90272.0,0.000486,13]
[387818737,1758888653855,-40847.327722,0.000486,13]